bitfinex/quotes_BTCUSD_20250908
["timestamp","ask_amount","ask_price","bid_price","bid_amount"]
[1757292087015,9.436e-05,111310.0,111300.0,1.92963708]
[1757292087235,9.436e-05,111310.0,111300.0,2.30637162]
[1757292088302,9.436e-05,111310.0,111300.0,2.30625534]
[1757292088513,9.436e-05,111310.0,111300.0,1.9295208]
[1757292088729,9.436e-05,111310.0,111300.0,2.15485534]
[1757292088946,9.436e-05,111310.0,111300.0,2.30617534]
[1757292090887,9.436e-05,111310.0,111300.0,2.22556274]
[1757292092001,9.436e-05,111310.0,111300.0,1.8488282]
[1757292092255,9.436e-05,111310.0,111300.0,2.22556274]
[1757292093436,9.436e-05,111310.0,111300.0,2.30614829]
[1757292093636,9.436e-05,111310.0,111300.0,2.32413829]
[1757292093841,9.436e-05,111310.0,111300.0,2.30614829]
[1757292094281,9.436e-05,111310.0,111300.0,1.92941375]
[1757292094632,9.436e-05,111310.0,111300.0,2.30614829]
[1757292095370,4.465e-05,111310.0,111300.0,2.30614829]
[1757292095815,4.465e-05,111310.0,111300.0,1.90614829]
[1757292096240,4.465e-05,111310.0,111300.0,2.30614829]
[1757292096864,4.465e-05,111310.0,111300.0,1.90614829]
[1757292097308,4.465e-05,111310.0,111300.0,2.30614829]
[1757292097752,4.465e-05,111310.0,111300.0,2.49451556]
[1757292097961,4.465e-05,111310.0,111300.0,2.51250556]
[1757292098188,4.65e-06,111310.0,111300.0,2.43192001]
[1757292098395,4.65e-06,111310.0,111300.0,2.24355274]
[1757292098608,4.65e-06,111310.0,111300.0,2.24055274]
[1757292098835,4.65e-06,111310.0,111300.0,2.35066994]
[1757292099029,4.65e-06,111310.0,111300.0,2.35366994]
[1757292099235,4.65e-06,111310.0,111300.0,2.35766994]
[1757292099516,4.65e-06,111310.0,111300.0,2.35066994]
[1757292099928,4.65e-06,111310.0,111300.0,2.36066994]
[1757292102201,4.65e-06,111310.0,111300.0,2.59903721]
[1757292102409,0.0002,111330.0,111320.0,0.89639677]
[1757292102652,0.0003259,111330.0,111320.0,0.98831276]
[1757292102812,0.0003259,111330.0,111320.0,0.61157822]
[1757292103186,0.0003259,111330.0,111320.0,1.6301279]
[1757292103793,0.0003259,111330.0,111320.0,1.6361279]
[1757292105165,0.0003259,111330.0,111320.0,1.64521144]
[1757292110369,0.0003259,111330.0,111320.0,1.45675275]
[1757292113804,0.0003259,111330.0,111320.0,1.2684769]
[1757292114015,0.0003259,111330.0,111320.0,1.45675275]
[1757292116389,0.0003259,111330.0,111320.0,1.71675275]
[1757292118460,0.0003259,111330.0,111320.0,1.71667275]
[1757292119238,0.0003259,111330.0,111320.0,1.31667275]
[1757292120890,0.0003259,111330.0,111320.0,1.16547275]
[1757292121249,0.0003259,111330.0,111320.0,0.9771969]
[1757292121460,0.0003259,111330.0,111320.0,0.70786176]
[1757292121659,0.0003259,111330.0,111320.0,0.98148678]
[1757292121871,0.0034559,111330.0,111320.0,0.61198857]
[1757292122086,0.37339784,111330.0,111320.0,0.61198857]
[1757292122377,0.37339784,111330.0,111320.0,0.74710292]
[1757292122943,0.19375175,111330.0,111320.0,0.74710292]
[1757292123172,0.37339784,111330.0,111320.0,0.74110292]
[1757292123582,0.37339784,111330.0,111320.0,0.74510292]
[1757292123804,0.0003259,111330.0,111320.0,0.76309292]
[1757292124018,0.0003259,111330.0,111320.0,0.74510292]
[1757292124233,0.0003259,111330.0,111320.0,0.93337877]
[1757292124670,0.0003259,111330.0,111320.0,0.97040324]
[1757292127378,0.0003259,111330.0,111320.0,1.31040324]
[1757292127748,0.0003259,111330.0,111320.0,1.24599289]
[1757292128168,0.0003259,111330.0,111320.0,1.50919289]
[1757292129614,0.0003259,111330.0,111320.0,1.32091704]
[1757292130070,0.0003259,111330.0,111320.0,1.50919289]
[1757292131461,0.0003259,111330.0,111320.0,1.58972803]
[1757292132372,0.0003259,111330.0,111320.0,1.50919289]
[1757292132584,0.0003259,111330.0,111320.0,1.16971704]
[1757292132794,0.0054759,111330.0,111320.0,1.38529522]
[1757292133000,0.0003259,111330.0,111320.0,1.38529522]
[1757292134123,0.0003259,111330.0,111320.0,1.12209522]
[1757292135486,0.0003259,111330.0,111320.0,1.31037107]
[1757292136587,0.0003259,111330.0,111320.0,1.12209522]
[1757292137014,0.0003259,111330.0,111320.0,1.19109522]
[1757292137695,0.0003259,111330.0,111320.0,1.37937107]
[1757292143628,0.0003259,111330.0,111320.0,1.19109522]
[1757292144946,1.16042166,111330.0,111320.0,0.274]
[1757292145230,1.46644858,111330.0,111320.0,0.21005]
[1757292145481,0.99090039,111330.0,111320.0,0.004]
[1757292145709,0.96642209,111330.0,111320.0,0.002]
[1757292145925,0.97538511,111330.0,111300.0,0.15116]
[1757292146158,0.17967837,111310.0,111300.0,0.24307599]
[1757292146636,0.37296422,111310.0,111300.0,0.24307599]
[1757292152196,0.37296422,111310.0,111300.0,0.09191599]
[1757292152424,0.37296422,111310.0,111300.0,0.24311599]
[1757292157210,0.37296422,111310.0,111300.0,0.09191599]
[1757292157461,0.17972076,111290.0,111280.0,0.17972681]
[1757292157686,0.18166066,111290.0,111280.0,0.2736728]
[1757292157924,0.17971066,111290.0,111280.0,0.4248728]
[1757292158165,0.17971066,111290.0,111280.0,0.45185519]
[1757292158678,0.18472066,111290.0,111280.0,0.45385519]
[1757292158912,0.18476734,111290.0,111280.0,0.45385519]
[1757292159140,0.18476734,111290.0,111280.0,0.45585519]
[1757292160076,0.00505668,111290.0,111280.0,0.45585519]
[1757292161707,4.668e-05,111290.0,111280.0,0.45585519]
[1757292161945,4.668e-05,111290.0,111280.0,0.45899519]
[1757292162194,4.668e-05,111290.0,111280.0,0.71899519]
[1757292163413,4.668e-05,111290.0,111280.0,0.92820986]
[1757292163913,4.668e-05,111290.0,111280.0,0.73993401]
[1757292169022,4.668e-05,111290.0,111280.0,0.73679401]
[1757292169262,4.668e-05,111290.0,111280.0,0.73993401]
[1757292169982,4.668e-05,111290.0,111280.0,0.92820986]
[1757292172484,4.668e-05,111290.0,111280.0,1.11678163]
[1757292172940,0.18805262,111310.0,111300.0,0.17969451]
[1757292173152,0.1880993,111310.0,111300.0,0.4228105]
[1757292173397,0.36777767,111310.0,111300.0,0.4248305]
[1757292174283,0.1880993,111310.0,111300.0,0.4248305]
[1757292174503,0.36777767,111310.0,111300.0,0.4248305]
[1757292174718,0.37287767,111310.0,111300.0,0.4248305]
[1757292175147,0.17972505,111310.0,111300.0,0.4248305]
[1757292175368,0.36814886,111310.0,111300.0,0.4248305]
[1757292176688,0.37324886,111310.0,111300.0,0.4248305]
[1757292177760,0.36814886,111310.0,111300.0,0.4248305]
[1757292178207,0.37324886,111310.0,111300.0,0.4248305]
[1757292178435,0.18482505,111310.0,111300.0,0.4248305]
[1757292178653,0.19057049,111310.0,111300.0,0.4248305]
[1757292179069,0.37324886,111310.0,111300.0,0.4248305]
[1757292181516,0.37324886,111310.0,111300.0,0.24311599]
[1757292181746,0.56167267,111310.0,111300.0,0.24311599]
[1757292182195,0.18482505,111310.0,111300.0,0.24311599]
[1757292182407,0.37324886,111310.0,111300.0,0.09191599]
[1757292182644,0.56167267,111310.0,111300.0,0.24311599]
[1757292182857,0.37324886,111310.0,111300.0,0.24311599]
[1757292183730,0.56167267,111310.0,111300.0,0.09191599]
[1757292183964,0.56167267,111310.0,111300.0,0.24311599]
[1757292184405,0.37324886,111310.0,111300.0,0.24311599]
[1757292186465,0.17972505,111310.0,111300.0,0.4248305]
[1757292186685,0.36814886,111310.0,111300.0,0.4248305]
[1757292186894,0.37324886,111310.0,111300.0,0.4248305]
[1757292187550,0.37324886,111310.0,111300.0,0.09191599]
[1757292187779,0.37324886,111310.0,111300.0,0.24311599]
[1757292188649,0.37324886,111310.0,111300.0,0.4228105]
[1757292192394,0.37324886,111310.0,111300.0,0.09191599]
[1757292192611,0.18482505,111310.0,111300.0,0.24311599]
[1757292192927,0.37324886,111310.0,111300.0,0.4228105]
[1757292193896,0.37324886,111310.0,111300.0,0.09191599]
[1757292194103,0.17969451,111300.0,111290.0,0.0269794]
[1757292194309,0.55954213,111300.0,111290.0,0.27009539]
[1757292194621,0.56164213,111300.0,111290.0,0.27009539]
[1757292194822,0.56164213,111300.0,111290.0,0.44980605]
[1757292195251,0.56164213,111300.0,111290.0,0.27009539]
[1757292195446,0.56164213,111300.0,111290.0,0.27109539]
[1757292195645,0.56164213,111300.0,111290.0,0.27209539]
[1757292195848,0.56164213,111300.0,111290.0,0.12089539]
[1757292196086,0.56164213,111300.0,111290.0,0.27209539]
[1757292196925,0.56164213,111300.0,111290.0,0.45080605]
[1757292197091,0.56164213,111300.0,111290.0,0.27109539]
[1757292197274,0.56164213,111300.0,111290.0,0.27209539]
[1757292197476,0.56164213,111300.0,111290.0,0.27109539]
[1757292197683,0.56164213,111300.0,111290.0,0.45080605]
[1757292198122,0.56164213,111300.0,111290.0,0.44980605]
[1757292198601,0.56164213,111300.0,111290.0,0.11889539]
[1757292198805,0.17972425,111290.0,111280.0,0.15116]
[1757292199006,0.37114806,111290.0,111280.0,0.27006068]
[1757292199231,0.37324806,111290.0,111280.0,0.27006068]
[1757292199630,0.18482425,111290.0,111280.0,0.27006068]
[1757292199849,0.37324806,111290.0,111280.0,0.27006068]
[1757292200074,0.37324806,111290.0,111280.0,0.24307599]
[1757292200477,0.56167187,111290.0,111280.0,0.09191599]
[1757292200729,0.56167187,111290.0,111280.0,0.24407599]
[1757292200932,0.56167187,111290.0,111280.0,0.24507599]
[1757292201884,0.56167187,111290.0,111280.0,0.24407599]
[1757292202283,0.56167187,111290.0,111280.0,0.24307599]
[1757292202496,0.37324806,111290.0,111280.0,0.24307599]
[1757292207742,0.56167187,111290.0,111280.0,0.24307599]
[1757292214821,0.17972681,111280.0,111270.0,0.069]
[1757292215024,0.55956443,111280.0,111270.0,0.24307599]
[1757292215237,0.56158443,111280.0,111270.0,0.24307599]
[1757292215475,0.18473681,111280.0,111270.0,0.24307599]
[1757292215684,0.56158443,111280.0,111270.0,0.24307599]
[1757292215866,0.37316062,111280.0,111270.0,0.42281895]
[1757292216074,0.37316062,111280.0,111270.0,0.42381895]
[1757292216250,0.37316062,111280.0,111270.0,0.42481895]
[1757292216660,0.37316062,111280.0,111270.0,0.24507599]
[1757292217642,0.18473681,111280.0,111270.0,0.42481895]
[1757292217845,0.37316062,111280.0,111270.0,0.42481895]
[1757292218071,0.37316062,111280.0,111270.0,0.24507599]
[1757292218560,0.37316062,111280.0,111270.0,0.42481895]
[1757292218757,0.37316062,111280.0,111270.0,0.24407599]
[1757292219772,0.37316062,111280.0,111270.0,0.09291599]
[1757292220002,0.37316062,111280.0,111270.0,0.24407599]
[1757292220485,0.37316062,111280.0,111270.0,0.24307599]
[1757292223203,0.1797548,111270.0,111250.0,0.44616649]
[1757292223401,0.37116861,111270.0,111260.0,0.42283511]
[1757292223660,0.1847648,111270.0,111260.0,0.42283511]
[1757292224401,0.1847648,111270.0,111260.0,0.42288179]
[1757292224616,0.1847648,111270.0,111260.0,0.42388179]
[1757292225406,0.1847648,111270.0,111260.0,0.42488179]
[1757292228256,0.1847648,111270.0,111260.0,0.42700179]
[1757292228491,0.1797548,111270.0,111260.0,0.6154256]
[1757292228947,0.1817748,111270.0,111260.0,0.6154256]
[1757292229169,0.1847648,111270.0,111260.0,0.6154256]
[1757292229474,0.1847648,111270.0,111260.0,0.6133056]
[1757292229711,0.1847648,111270.0,111260.0,0.42488179]
[1757292233781,0.1847648,111270.0,111260.0,0.24512267]
[1757292234867,0.1847648,111270.0,111260.0,0.09196267]
[1757292235073,0.1847648,111270.0,111260.0,0.24312267]
[1757292237781,0.1847648,111270.0,111260.0,0.42288179]
[1757292238473,0.1847648,111270.0,111260.0,0.24312267]
[1757292239953,0.1847648,111270.0,111260.0,0.42288179]
[1757292240407,0.1847648,111270.0,111260.0,0.42485179]
[1757292240624,0.1847648,111270.0,111260.0,0.42481179]
[1757292240854,0.1847648,111270.0,111260.0,0.42284179]
[1757292242350,0.1847648,111270.0,111260.0,0.24308267]
[1757292245656,0.37332274,111270.0,111260.0,0.24308267]
[1757292246355,0.1847648,111270.0,111260.0,0.24308267]
[1757292246499,0.37332274,111270.0,111260.0,0.24308267]
[1757292246869,0.1797548,111270.0,111260.0,0.42284179]
[1757292247077,0.1797548,111270.0,111260.0,0.42481179]
[1757292247078,0.17974296,111270.0,111260.0,0.42481179]
[1757292247307,0.34286315,111280.0,111260.0,0.42481179]
[1757292247529,0.18275681,111280.0,111270.0,0.17974296]
[1757292247771,0.18484681,111280.0,111270.0,0.27362895]
[1757292247996,0.17972681,111280.0,111270.0,0.27362895]
[1757292248591,0.19173978,111290.0,111280.0,0.17972681]
[1757292248807,0.19382978,111290.0,111280.0,0.4247328]
[1757292249049,0.19079978,111290.0,111280.0,0.4247328]
[1757292249236,0.19382978,111290.0,111280.0,0.24303599]
[1757292249455,0.19382978,111290.0,111280.0,0.4227628]
[1757292250170,0.19382978,111290.0,111280.0,0.24303599]
[1757292250626,0.38238772,111290.0,111280.0,0.24303599]
[1757292250835,0.38338772,111290.0,111280.0,0.24303599]
[1757292251046,0.19482978,111290.0,111280.0,0.24303599]
[1757292251701,0.17974248,111280.0,111270.0,0.15112]
[1757292251919,0.18183248,111280.0,111270.0,0.24303599]
[1757292252128,0.18486248,111280.0,111270.0,0.24303599]
[1757292252533,0.17974296,111270.0,111260.0,4.668e-05]
[1757292252750,0.3683009,111270.0,111260.0,4.668e-05]
[1757292252967,0.3734209,111270.0,111260.0,4.668e-05]
[1757292253403,0.18486296,111270.0,111260.0,4.668e-05]
[1757292254690,0.18486296,111270.0,111260.0,0.15116668]
[1757292255099,0.18486296,111270.0,111260.0,0.15313668]
[1757292256749,0.18486296,111270.0,111260.0,0.15116668]
[1757292259569,0.18486296,111270.0,111260.0,4.668e-05]
[1757292259787,0.18486296,111270.0,111260.0,0.15112668]
[1757292259788,0.3734209,111270.0,111260.0,0.15112668]
[1757292260585,0.3734209,111270.0,111260.0,0.17811841]
[1757292261221,0.18486296,111270.0,111260.0,0.17811841]
[1757292261378,0.3734209,111270.0,111260.0,0.17811841]
[1757292261812,0.18486296,111270.0,111260.0,0.17811841]
[1757292263325,0.3734209,111270.0,111260.0,0.17811841]
[1757292263539,0.3734209,111270.0,111260.0,0.02703841]
[1757292263776,0.3734209,111270.0,111260.0,0.17811841]
[1757292270553,0.18486296,111270.0,111260.0,0.17811841]
[1757292270761,0.18486296,111270.0,111260.0,0.02703841]
[1757292270977,0.3734209,111270.0,111260.0,0.02703841]
[1757292274124,0.18486296,111270.0,111260.0,0.02703841]
[1757292275856,0.18537908,111270.0,111260.0,0.02703841]
[1757292277150,0.37393702,111270.0,111260.0,0.02703841]
[1757292278528,0.18537908,111270.0,111260.0,0.02703841]
[1757292280239,0.37393702,111270.0,111260.0,0.02703841]
[1757292283250,0.18537908,111270.0,111260.0,0.02703841]
[1757292283456,0.37393702,111270.0,111260.0,0.02703841]
[1757292283660,0.18537908,111270.0,111260.0,0.02703841]
[1757292283869,0.18537908,111270.0,111260.0,0.02907841]
[1757292284098,0.18537908,111270.0,111260.0,0.02703841]
[1757292294490,0.37395252,111270.0,111260.0,0.02703841]
[1757292297595,0.56252596,111270.0,111260.0,4.668e-05]
[1757292297827,0.58912596,111270.0,111260.0,4.668e-05]
[1757292298045,0.61612176,111270.0,111260.0,4.668e-05]
[1757292299113,0.61712176,111270.0,111260.0,4.668e-05]
[1757292300441,0.61612176,111270.0,111260.0,4.668e-05]
[1757292300659,1.06744265,111270.0,111260.0,4.668e-05]
[1757292300874,1.04803775,111270.0,111260.0,4.668e-05]
[1757292301099,1.06844258,111270.0,111260.0,4.668e-05]
[1757292301320,1.04903775,111270.0,111260.0,4.668e-05]
[1757292310873,0.86046431,111270.0,111260.0,4.668e-05]
[1757292311060,1.04903775,111270.0,111260.0,4.668e-05]
[1757292312501,1.20003775,111270.0,111260.0,4.668e-05]
[1757292314668,0.82289087,111270.0,111260.0,4.668e-05]
[1757292314881,0.98486431,111270.0,111260.0,4.668e-05]
[1757292316588,1.20003775,111270.0,111260.0,4.668e-05]
[1757292321774,1.20853775,111270.0,111260.0,4.668e-05]
[1757292324302,1.22792789,111270.0,111260.0,4.668e-05]
[1757292326112,1.03935445,111270.0,111260.0,4.668e-05]
[1757292327062,1.03085445,111270.0,111260.0,4.668e-05]
[1757292329458,1.28068014,111270.0,111260.0,4.668e-05]
[1757292329652,1.2731206,111270.0,111260.0,4.668e-05]
[1757292329899,1.28193602,111270.0,111260.0,4.668e-05]
[1757292333744,1.4204612,111270.0,111260.0,4.668e-05]
[1757292333962,1.63303613,111270.0,111260.0,4.668e-05]
[1757292334182,1.60083113,111270.0,111260.0,4.668e-05]
[1757292334396,1.66499142,111270.0,111260.0,4.668e-05]
[1757292334885,0.00898795,111260.0,111230.0,1e-08]
[1757292335095,1.21305356,111240.0,111230.0,1e-08]
[1757292335332,1.51264335,111240.0,111230.0,1e-08]
[1757292335548,1.62413621,111240.0,111230.0,1e-08]
[1757292335758,1.65936418,111240.0,111230.0,1e-08]
[1757292335993,1.63510576,111240.0,111230.0,1e-08]
[1757292336224,1.63509884,111240.0,111230.0,1e-08]
[1757292336444,1.89945569,111240.0,111230.0,1e-08]
[1757292337099,1.89095569,111240.0,111230.0,1e-08]
[1757292337780,1.70814226,111240.0,111230.0,1e-08]
[1757292338018,1.85913658,111240.0,111230.0,1e-08]
[1757292338226,1.90524035,111240.0,111230.0,1e-08]
[1757292338745,1.44317748,111240.0,111230.0,1e-08]
[1757292339190,1.47499091,111240.0,111230.0,1e-08]
[1757292339633,1.41386269,111240.0,111230.0,1e-08]
[1757292340072,1.41438107,111240.0,111230.0,1e-08]
[1757292340277,1.45428019,111240.0,111230.0,1e-08]
[1757292340485,1.30328019,111240.0,111230.0,1e-08]
[1757292340707,1.45428019,111240.0,111230.0,1e-08]
[1757292341832,1.98429618,111240.0,111230.0,1e-08]
[1757292342296,1.99279618,111240.0,111230.0,1e-08]
[1757292342507,2.0539244,111240.0,111230.0,1e-08]
[1757292342725,2.10244125,111240.0,111230.0,1e-08]
[1757292343184,2.10872163,111240.0,111230.0,1e-08]
[1757292343408,0.36842955,111200.0,111190.0,0.0004]
[1757292343624,0.87749898,111200.0,111190.0,0.0004]
[1757292343842,0.88010448,111200.0,111190.0,0.0004]
[1757292344059,0.89364448,111200.0,111190.0,0.0004]
[1757292344707,0.89364448,111200.0,111190.0,0.0008673]
[1757292345388,0.89964448,111200.0,111190.0,0.0008673]
[1757292345804,0.93193567,111200.0,111190.0,0.0008673]
[1757292346015,0.93593567,111200.0,111190.0,0.0008673]
[1757292348627,0.9295534,111200.0,111190.0,0.0008673]
[1757292349060,0.41677714,111200.0,111190.0,0.0008673]
[1757292349266,0.47590115,111200.0,111190.0,0.0008673]
[1757292349681,0.66447459,111200.0,111190.0,0.0008673]
[1757292349907,0.51343459,111200.0,111190.0,0.0008673]
[1757292350111,0.47590115,111200.0,111190.0,0.0029573]
[1757292350312,0.3158728,111200.0,111190.0,0.0029573]
[1757292350514,0.76084161,111200.0,111190.0,0.19153074]
[1757292350758,0.76084161,111200.0,111190.0,0.19464074]
[1757292351365,0.75484161,111200.0,111190.0,0.19464074]
[1757292351570,0.75084161,111200.0,111190.0,0.19464074]
[1757292351737,0.75784161,111200.0,111190.0,0.19464074]
[1757292351947,0.75784161,111200.0,111190.0,0.19153074]
[1757292352317,0.75484161,111200.0,111190.0,0.19153074]
[1757292352504,0.68576161,111200.0,111190.0,0.19553074]
[1757292353166,0.69095161,111200.0,111190.0,0.0069573]
[1757292353391,0.87952505,111200.0,111190.0,0.0048673]
[1757292353614,0.87552505,111200.0,111190.0,0.0048673]
[1757292354689,0.87552505,111200.0,111190.0,0.0008673]
[1757292354898,0.87552505,111200.0,111190.0,0.0028673]
[1757292355110,0.92028078,111200.0,111190.0,0.0008673]
[1757292355535,0.92328078,111200.0,111190.0,0.0008673]
[1757292356318,0.73470734,111200.0,111190.0,0.0008673]
[1757292357739,0.92354643,111200.0,111190.0,0.0008673]
[1757292358802,1.03476712,111200.0,111190.0,0.0008673]
[1757292358931,1.06651953,111200.0,111190.0,0.0008673]
[1757292360647,1.11595479,111200.0,111190.0,0.0008673]
[1757292361007,0.96491479,111200.0,111190.0,0.0008673]
[1757292361217,1.11595479,111200.0,111190.0,0.0008673]
[1757292361430,1.2190473,111200.0,111190.0,1e-08]
[1757292361646,1.27247736,111200.0,111190.0,1e-08]
[1757292362100,1.24032367,111200.0,111190.0,1e-08]
[1757292363445,0.17988846,111180.0,111170.0,0.0004]
[1757292363668,0.93456977,111180.0,111170.0,0.0004]
[1757292364064,0.51990465,111170.0,111160.0,0.0004]
[1757292364284,1.0592582,111170.0,111160.0,0.0004]
[1757292364517,1.06486713,111170.0,111160.0,0.0004]
[1757292364993,1.06486713,111170.0,111160.0,1e-08]
[1757292364994,1.17882707,111170.0,111160.0,1e-08]
[1757292365237,1.18393938,111170.0,111160.0,1e-08]
[1757292365460,1.25457283,111170.0,111160.0,1e-08]
[1757292366327,1.19223631,111170.0,111160.0,1e-08]
[1757292366641,1.03919631,111170.0,111160.0,1e-08]
[1757292366861,1.19023631,111170.0,111160.0,1e-08]
[1757292367285,1.18393938,111170.0,111160.0,1e-08]
[1757292370163,0.78259325,111150.0,111140.0,0.00054011]
[1757292370455,0.80353207,111150.0,111140.0,0.00054011]
[1757292370681,1.46063829,111150.0,111140.0,1e-08]
[1757292370903,0.5199856,111120.0,111110.0,0.0004]
[1757292371125,0.85986469,111120.0,111110.0,0.00044675]
[1757292371335,0.88435939,111120.0,111110.0,0.00044675]
[1757292371550,0.88475479,111120.0,111110.0,0.00044675]
[1757292371777,0.6959157,111120.0,111110.0,0.00044675]
[1757292372231,0.72394637,111120.0,111110.0,0.01244675]
[1757292372514,0.77376167,111120.0,111110.0,0.01244675]
[1757292372739,0.62272167,111120.0,111110.0,0.01244675]
[1757292372964,0.82280072,111120.0,111110.0,0.01244675]
[1757292373404,0.82380072,111120.0,111110.0,0.01844675]
[1757292377166,1.1045558,111120.0,111110.0,0.01844675]
[1757292377385,1.31263977,111120.0,111110.0,0.01844675]
[1757292377604,1.12380068,111120.0,111110.0,0.01844675]
[1757292378243,0.78188159,111120.0,111110.0,0.00044675]
[1757292378468,1.12204068,111120.0,111110.0,0.00744675]
[1757292378692,1.12204068,111120.0,111110.0,0.00044675]
[1757292379129,1.12504068,111120.0,111110.0,0.00044675]
[1757292379586,1.12504068,111120.0,111110.0,0.00344675]
[1757292379933,0.97372068,111120.0,111110.0,0.00344675]
[1757292380158,1.12508068,111120.0,111110.0,0.00044675]
[1757292380459,1.12536068,111120.0,111110.0,0.00044675]
[1757292380700,1.12936068,111120.0,111110.0,0.00144675]
[1757292382283,0.78888159,111120.0,111110.0,0.00144675]
[1757292382489,0.94052159,111120.0,111110.0,0.00144675]
[1757292386460,0.78888159,111120.0,111110.0,0.00144675]
[1757292386651,0.8487656,111120.0,111110.0,0.00348675]
[1757292386887,0.82173493,111120.0,111110.0,0.00144675]
[1757292387494,0.82173493,111120.0,111110.0,0.00348675]
[1757292388058,0.02664028,111120.0,111110.0,0.37232764]
[1757292388277,0.187381,111120.0,111110.0,0.37550764]
[1757292388495,0.339101,111120.0,111110.0,0.19550584]
[1757292388657,0.339101,111120.0,111110.0,0.19232584]
[1757292388872,0.1591154,111120.0,111110.0,0.37550764]
[1757292389076,0.1551154,111120.0,111110.0,0.46642363]
[1757292389306,0.0003954,111120.0,111110.0,0.47342363]
[1757292389557,0.0013954,111120.0,111110.0,0.47342363]
[1757292389743,0.0023954,111120.0,111110.0,0.48542363]
[1757292390931,0.182381,111120.0,111110.0,0.48542363]
[1757292391136,0.0023954,111120.0,111110.0,0.48542363]
[1757292391332,0.182381,111120.0,111110.0,0.48542363]
[1757292391558,0.182381,111120.0,111110.0,0.02148675]
[1757292391960,0.182381,111120.0,111110.0,0.21350584]
[1757292392205,0.0023954,111120.0,111110.0,0.39350764]
[1757292392601,0.182381,111120.0,111110.0,0.20466855]
[1757292393019,0.182381,111120.0,111110.0,0.21032584]
[1757292393422,0.182381,111120.0,111110.0,0.39032764]
[1757292393738,0.182381,111120.0,111110.0,0.39350764]
[1757292394130,0.0023954,111120.0,111110.0,0.39350764]
[1757292394759,0.182381,111120.0,111110.0,0.39350764]
[1757292394969,0.182381,111120.0,111110.0,0.39032764]
[1757292395429,0.182381,111120.0,111110.0,0.39350764]
[1757292395645,0.182381,111120.0,111110.0,0.21032584]
[1757292396148,0.182381,111120.0,111110.0,0.39350764]
[1757292398048,0.0023954,111120.0,111110.0,0.39350764]
[1757292398744,0.182381,111120.0,111110.0,0.39350764]
[1757292398955,0.0023954,111120.0,111110.0,0.39350764]
[1757292400226,0.0023954,111120.0,111110.0,0.67426272]
[1757292400424,0.0023954,111120.0,111110.0,0.48542363]
[1757292402408,0.0023954,111120.0,111110.0,0.49450604]
[1757292407715,0.0023954,111120.0,111110.0,0.68334513]
[1757292408307,0.0023954,111120.0,111110.0,0.49450604]
[1757292408511,0.0023954,111120.0,111110.0,0.68334513]
[1757292411351,0.0023954,111120.0,111110.0,0.30566695]
[1757292411546,0.0023954,111120.0,111110.0,0.29340454]
[1757292411782,0.0023954,111120.0,111110.0,0.63698363]
[1757292414294,0.182381,111120.0,111110.0,0.63698363]
[1757292414425,0.0023954,111120.0,111110.0,0.63698363]
[1757292415471,0.182381,111120.0,111110.0,0.63698363]
[1757292415884,0.0023954,111120.0,111110.0,0.63698363]
[1757292416700,0.0023954,111120.0,111110.0,0.44814454]
[1757292416897,0.0023954,111120.0,111110.0,0.63698363]
[1757292417075,0.182381,111120.0,111110.0,0.63698363]
[1757292417740,0.187691,111120.0,111110.0,0.17308675]
[1757292417976,0.187691,111120.0,111110.0,0.01944675]
[1757292419420,0.37679048,111120.0,111110.0,0.01944675]
[1757292419657,0.71679048,111120.0,111110.0,0.01944675]
[1757292420455,0.71479048,111120.0,111110.0,0.00044675]
[1757292420885,0.525691,111120.0,111110.0,0.00344675]
[1757292421092,0.5666006,111120.0,111110.0,0.00344675]
[1757292421314,0.75570008,111120.0,111110.0,0.00344675]
[1757292422219,0.75570008,111120.0,111110.0,0.00044675]
[1757292422403,0.75570008,111120.0,111110.0,0.00244675]
[1757292422642,0.75670008,111120.0,111110.0,0.01044675]
[1757292423294,0.75570008,111120.0,111110.0,0.00244675]
[1757292423653,0.75670008,111120.0,111110.0,0.00944675]
[1757292424276,0.5676006,111120.0,111110.0,0.00944675]
[1757292425044,0.75670008,111120.0,111110.0,0.00944675]
[1757292428122,0.90842008,111120.0,111110.0,0.00944675]
[1757292428337,0.7193206,111120.0,111110.0,0.00944675]
[1757292429196,0.7189252,111120.0,111110.0,0.00944675]
[1757292429387,0.71920675,111120.0,111110.0,0.00944675]
[1757292431900,0.90830623,111120.0,111110.0,0.00944675]
[1757292432627,0.56748675,111120.0,111110.0,0.00944675]
[1757292432894,0.71924675,111120.0,111110.0,0.00944675]
[1757292433914,0.90834623,111120.0,111110.0,0.00944675]
[1757292434903,0.71924675,111120.0,111110.0,0.00944675]
[1757292435147,0.90834623,111120.0,111110.0,0.00944675]
[1757292440742,0.93537894,111120.0,111110.0,0.00944675]
[1757292445261,1.2481224,111120.0,111110.0,0.00944675]
[1757292446025,1.26753894,111120.0,111110.0,0.00944675]
[1757292446449,1.26653894,111120.0,111110.0,0.00244675]
[1757292446686,1.29127894,111120.0,111110.0,0.00244675]
[1757292446912,1.13951894,111120.0,111110.0,0.00244675]
[1757292447157,1.29115894,111120.0,111110.0,0.00244675]
[1757292447365,1.25943095,111120.0,111110.0,0.00044675]
[1757292447801,1.25943095,111120.0,111110.0,0.00144675]
[1757292448258,1.25943095,111120.0,111110.0,0.00044675]
[1757292448489,1.26243095,111120.0,111110.0,0.00044675]
[1757292453595,1.29415894,111120.0,111110.0,0.00044675]
[1757292453812,1.30341161,111120.0,111110.0,0.00044675]
[1757292454220,1.27929054,111120.0,111110.0,0.00044675]
[1757292458952,1.25194485,111120.0,111110.0,0.00044675]
[1757292461032,1.25509485,111120.0,111110.0,0.00044675]
[1757292465684,1.23007485,111120.0,111110.0,0.00044675]
[1757292468338,1.23004533,111120.0,111110.0,0.00044675]
[1757292469196,1.25478533,111120.0,111110.0,0.00044675]
[1757292472474,1.25470533,111120.0,111110.0,0.00044675]
[1757292473325,0.74934744,111120.0,111110.0,0.00044675]
[1757292473554,1.25470533,111120.0,111110.0,0.00044675]
[1757292474201,1.2788264,111120.0,111110.0,0.00044675]
[1757292475518,1.27884662,111120.0,111110.0,0.00044675]
[1757292478503,1.08981381,111120.0,111110.0,0.00044675]
[1757292478940,1.09831381,111120.0,111110.0,0.00044675]
[1757292479706,1.07357381,111120.0,111110.0,0.00044675]
[1757292481475,1.26273996,111120.0,111110.0,0.00044675]
[1757292484577,1.07357381,111120.0,111110.0,0.00044675]
[1757292487420,1.07357381,111120.0,111110.0,1e-08]
[1757292487421,1.26273996,111120.0,111110.0,1e-08]
[1757292487636,1.26906442,111120.0,111110.0,1e-08]
[1757292487868,0.520018,111100.0,111090.0,1e-08]
[1757292488088,1.02154014,111100.0,111090.0,1e-08]
[1757292488351,0.85702053,111100.0,111090.0,1e-08]
[1757292488985,0.87655225,111100.0,111090.0,1e-08]
[1757292489211,0.87755225,111100.0,111090.0,1e-08]
[1757292489652,0.87655225,111100.0,111090.0,1e-08]
[1757292489848,0.87755225,111100.0,111090.0,1e-08]
[1757292490314,0.88905225,111100.0,111090.0,1e-08]
[1757292490553,0.92075582,111100.0,111090.0,1e-08]
[1757292490752,0.88905225,111100.0,111090.0,1e-08]
[1757292493544,0.92075582,111100.0,111090.0,1e-08]
[1757292495399,0.18006662,111070.0,111060.0,0.00355]